[Event "Titled Tuesday Blitz March 08 Late 2022"]
[White "Miszler, Levente"]
[Black "Wagner, Dennis"]
[WhiteFideId "763276"]
[BlackFideId "24650684"]
[WhiteElo "2378"]
[BlackElo "2700"]
[Result "0-1"]
[Round "01"]
[TimeControl "180+1"]
[Date "2022.03.09"]
[WhiteClock "0:00:07"]
[BlackClock "0:00:19"]

1. Nf3 {[%clk 0:02:59]}  g6 {[%clk 0:02:57]} 2. c4 {[%clk 0:02:57]}  Bg7 {[%clk 0:02:56]} 3. g3 {[%clk 0:02:55]}  c5 {[%clk 0:02:55]} 4. Bg2 {[%clk 0:02:55]}  Nc6 {[%clk 0:02:55]} 5. O-O {[%clk 0:02:49]}  d6 {[%clk 0:02:55]} 6. Nc3 {[%clk 0:02:44]}  Be6 {[%clk 0:02:55]} 7. d3 {[%clk 0:02:43]}  Qc8 {[%clk 0:02:55]} 8. a3 {[%clk 0:02:34]}  Bh3 {[%clk 0:02:54]} 9. Rb1 {[%clk 0:02:35]}  Bxg2 {[%clk 0:02:52]} 10. Kxg2 {[%clk 0:02:34]}  h5 {[%clk 0:02:52]} 11. e4 {[%clk 0:02:34]}  Nf6 {[%clk 0:02:42]} 12. Nd5 {[%clk 0:02:33]}  e6 {[%clk 0:02:31]} 13. Nxf6+ {[%clk 0:02:30]}  Bxf6 {[%clk 0:02:32]} 14. b4 {[%clk 0:02:30]}  h4 {[%clk 0:02:30]} 15. b5 {[%clk 0:02:29]}  h3+ {[%clk 0:02:28]} 16. Kg1 {[%clk 0:02:27]}  Nd4 {[%clk 0:02:27]} 17. Nxd4 {[%clk 0:02:27]}  Bxd4 {[%clk 0:02:28]} 18. Bb2 {[%clk 0:02:23]}  Bxb2 {[%clk 0:02:07]} 19. Rxb2 {[%clk 0:02:24]}  e5 {[%clk 0:02:07]} 20. f4 {[%clk 0:02:19]}  exf4 {[%clk 0:02:04]} 21. Rxf4 {[%clk 0:02:18]}  Qe6 {[%clk 0:02:01]} 22. Rbf2 {[%clk 0:02:16]}  Rh7 {[%clk 0:02:00]} 23. Rf6 {[%clk 0:02:12]}  Qe7 {[%clk 0:01:58]} 24. Qg4 {[%clk 0:02:10]}  a6 {[%clk 0:01:50]} 25. b6 {[%clk 0:02:04]}  Rd8 {[%clk 0:01:47]} 26. Qg5 {[%clk 0:01:33]}  Qe5 {[%clk 0:01:40]} 27. R6f5 {[%clk 0:01:14]}  Qa1+ {[%clk 0:01:05]} 28. Rf1 {[%clk 0:01:14]}  Qd4+ {[%clk 0:01:06]} 29. R5f2 {[%clk 0:00:52]}  Rd7 {[%clk 0:01:06]} 30. Qd2 {[%clk 0:00:47]}  Re7 {[%clk 0:01:04]} 31. Kh1 {[%clk 0:00:45]}  Kd7 {[%clk 0:00:59]} 32. Rf3 {[%clk 0:00:43]}  Kc6 {[%clk 0:00:56]} 33. Rb1 {[%clk 0:00:29]}  Kd7 {[%clk 0:00:44]} 34. Rbf1 {[%clk 0:00:27]}  Kc6 {[%clk 0:00:38]} 35. Rb1 {[%clk 0:00:26]}  Rh5 {[%clk 0:00:35]} 36. Qf2 {[%clk 0:00:21]}  Qxf2 {[%clk 0:00:34]} 37. Rxf2 {[%clk 0:00:22]}  f5 {[%clk 0:00:30]} 38. exf5 {[%clk 0:00:21]}  Rxf5 {[%clk 0:00:31]} 39. Rxf5 {[%clk 0:00:19]}  gxf5 {[%clk 0:00:32]} 40. Kg1 {[%clk 0:00:18]}  Re2 {[%clk 0:00:32]} 41. Rf1 {[%clk 0:00:15]}  Rg2+ {[%clk 0:00:32]} 42. Kh1 {[%clk 0:00:16]}  Rd2 {[%clk 0:00:32]} 43. Kg1 {[%clk 0:00:16]}  Rxd3 {[%clk 0:00:31]} 44. Rxf5 {[%clk 0:00:17]}  Rxa3 {[%clk 0:00:31]} 45. Rh5 {[%clk 0:00:17]}  Rc3 {[%clk 0:00:29]} 46. Rxh3 {[%clk 0:00:17]}  a5 {[%clk 0:00:30]} 47. Rh8 {[%clk 0:00:17]}  a4 {[%clk 0:00:30]} 48. Ra8 {[%clk 0:00:17]}  Rxc4 {[%clk 0:00:30]} 49. h4 {[%clk 0:00:17]}  Kxb6 {[%clk 0:00:30]} 50. h5 {[%clk 0:00:16]}  Rg4 {[%clk 0:00:25]} 51. Kg2 {[%clk 0:00:15]}  Rg5 {[%clk 0:00:21]} 52. g4 {[%clk 0:00:10]}  Rxg4+ {[%clk 0:00:21]} 53. Kh3 {[%clk 0:00:11]}  Rg1 {[%clk 0:00:17]} 54. Kh4 {[%clk 0:00:11]}  Rh1+ {[%clk 0:00:17]} 55. Kg5 {[%clk 0:00:11]}  Kb5 {[%clk 0:00:17]} 56. h6 {[%clk 0:00:11]}  Kb4 {[%clk 0:00:17]} 57. Ra7 {[%clk 0:00:11]}  b5 {[%clk 0:00:18]} 58. h7 {[%clk 0:00:11]}  a3 {[%clk 0:00:18]} 59. Kg6 {[%clk 0:00:11]}  Kb3 {[%clk 0:00:18]} 60. Ra6 {[%clk 0:00:09]}  b4 {[%clk 0:00:17]} 61. Rxd6 {[%clk 0:00:10]}  c4 {[%clk 0:00:17]} 62. Kg7 {[%clk 0:00:09]}  Rxh7+ {[%clk 0:00:18]} 63. Kxh7 {[%clk 0:00:09]}  a2 {[%clk 0:00:19]} 64. Ra6 {[%clk 0:00:07]}  Kb2 {[%clk 0:00:19]} 0-1


[Site "https://www.chess.com"]

[Event "Titled Tuesday Blitz March 08 Late 2022"]
[White "Mortazavi, Ali"]
[Black "Dobrov, Vladimir"]
[WhiteFideId "401323"]
[BlackFideId "4136594"]
[WhiteElo "2339"]
[BlackElo "2614"]
[Result "0-1"]
[Round "01"]
[TimeControl "180+1"]
[Date "2022.03.08"]
[WhiteClock "0:00:01"]
[BlackClock "0:00:27"]

1. Nf3 {[%clk 0:03:00]}  d5 {[%clk 0:02:59]} 2. g3 {[%clk 0:03:00]}  Nd7 {[%clk 0:02:57]} 3. Bg2 {[%clk 0:03:01]}  e5 {[%clk 0:02:56]} 4. d3 {[%clk 0:03:01]}  f5 {[%clk 0:02:55]} 5. O-O {[%clk 0:03:02]}  Ngf6 {[%clk 0:02:55]} 6. c4 {[%clk 0:02:57]}  dxc4 {[%clk 0:02:36]} 7. dxc4 {[%clk 0:02:55]}  c6 {[%clk 0:02:07]} 8. Nc3 {[%clk 0:02:49]}  e4 {[%clk 0:02:02]} 9. Ng5 {[%clk 0:02:13]}  Qe7 {[%clk 0:01:48]} 10. f3 {[%clk 0:02:05]}  h6 {[%clk 0:01:43]} 11. Nh3 {[%clk 0:02:02]}  Ne5 {[%clk 0:01:30]} 12. fxe4 {[%clk 0:01:50]}  fxe4 {[%clk 0:01:29]} 13. b3 {[%clk 0:01:24]}  h5 {[%clk 0:01:21]} 14. Bg5 {[%clk 0:01:22]}  Bxh3 {[%clk 0:01:04]} 15. Bxh3 {[%clk 0:01:22]}  Neg4 {[%clk 0:01:04]} 16. Qc2 {[%clk 0:01:04]}  Qc5+ {[%clk 0:01:03]} 17. Kg2 {[%clk 0:01:02]}  Qxg5 {[%clk 0:01:02]} 18. Bxg4 {[%clk 0:00:55]}  hxg4 {[%clk 0:01:00]} 19. Nxe4 {[%clk 0:00:55]}  Qh6 {[%clk 0:00:56]} 20. Nxf6+ {[%clk 0:00:47]}  gxf6 {[%clk 0:00:57]} 21. Qe4+ {[%clk 0:00:46]}  Be7 {[%clk 0:00:57]} 22. h4 {[%clk 0:00:41]}  gxh3+ {[%clk 0:00:56]} 23. Kh2 {[%clk 0:00:42]}  Qh7 {[%clk 0:00:53]} 24. Rf5 {[%clk 0:00:39]}  O-O-O {[%clk 0:00:51]} 25. Raf1 {[%clk 0:00:33]}  Rd7 {[%clk 0:00:49]} 26. Qe6 {[%clk 0:00:24]}  Qg8 {[%clk 0:00:46]} 27. Qe3 {[%clk 0:00:16]}  Kb8 {[%clk 0:00:42]} 28. Ra5 {[%clk 0:00:12]}  c5 {[%clk 0:00:37]} 29. Rb5 {[%clk 0:00:10]}  Bd6 {[%clk 0:00:33]} 30. Rf3 {[%clk 0:00:10]}  Re7 {[%clk 0:00:30]} 31. Qd3 {[%clk 0:00:04]}  Qe6 {[%clk 0:00:28]} 32. e3 {[%clk 0:00:01]}  Rg8 {[%clk 0:00:27]} 0-1


[Site "https://www.chess.com"]

[Event "Titled Tuesday Blitz March 08 Late 2022"]
[White "Ozates, Tuna"]
[Black "Gadimbayli, Abdulla"]
[WhiteFideId "6354521"]
[BlackFideId "13404938"]
[WhiteElo "2398"]
[BlackElo "2712"]
[Result "0-1"]
[Round "01"]
[TimeControl "180+1"]
[Date "2022.03.09"]
[WhiteClock "0:00:55"]
[BlackClock "0:01:36"]

1. e4 {[%clk 0:02:59]}  e5 {[%clk 0:02:48]} 2. Nf3 {[%clk 0:02:57]}  d5 {[%clk 0:02:48]} 3. exd5 {[%clk 0:02:56]}  e4 {[%clk 0:02:49]} 4. Qe2 {[%clk 0:02:55]}  Nf6 {[%clk 0:02:49]} 5. d3 {[%clk 0:02:55]}  Bb4+ {[%clk 0:02:49]} 6. c3 {[%clk 0:02:45]}  O-O {[%clk 0:02:50]} 7. dxe4 {[%clk 0:02:45]}  Bd6 {[%clk 0:02:49]} 8. e5 {[%clk 0:02:41]}  Re8 {[%clk 0:02:48]} 9. Bg5 {[%clk 0:02:39]}  Nbd7 {[%clk 0:02:43]} 10. Bxf6 {[%clk 0:01:41]}  Nxf6 {[%clk 0:02:27]} 11. Nbd2 {[%clk 0:01:29]}  Bg4 {[%clk 0:02:27]} 12. O-O-O {[%clk 0:01:26]}  Rxe5 {[%clk 0:02:27]} 13. Qc4 {[%clk 0:01:25]}  Rxd5 {[%clk 0:02:25]} 14. h3 {[%clk 0:01:25]}  b5 {[%clk 0:02:16]} 15. Qb3 {[%clk 0:01:21]}  Bxf3 {[%clk 0:02:11]} 16. gxf3 {[%clk 0:01:21]}  Bf4 {[%clk 0:02:11]} 17. Qc2 {[%clk 0:01:21]}  Qd7 {[%clk 0:02:00]} 18. c4 {[%clk 0:01:20]}  Rd4 {[%clk 0:01:59]} 19. h4 {[%clk 0:01:13]}  Rd8 {[%clk 0:01:56]} 20. Bh3 {[%clk 0:01:14]}  Qd6 {[%clk 0:01:50]} 21. Kb1 {[%clk 0:01:09]}  Rxd2 {[%clk 0:01:47]} 22. Rxd2 {[%clk 0:01:10]}  Qxd2 {[%clk 0:01:48]} 23. cxb5 {[%clk 0:01:09]}  Qxc2+ {[%clk 0:01:47]} 24. Kxc2 {[%clk 0:01:10]}  Rd2+ {[%clk 0:01:47]} 25. Kc3 {[%clk 0:01:10]}  Nd5+ {[%clk 0:01:47]} 26. Kc4 {[%clk 0:01:10]}  Nb6+ {[%clk 0:01:46]} 27. Kc3 {[%clk 0:01:10]}  Rxf2 {[%clk 0:01:46]} 28. Rd1 {[%clk 0:01:08]}  Be5+ {[%clk 0:01:45]} 29. Kb4 {[%clk 0:01:08]}  Bd6+ {[%clk 0:01:45]} 30. Ka5 {[%clk 0:01:02]}  Rxb2 {[%clk 0:01:40]} 31. Ka6 {[%clk 0:01:02]}  Rxa2+ {[%clk 0:01:40]} 32. Kb7 {[%clk 0:01:03]}  g6 {[%clk 0:01:37]} 33. h5 {[%clk 0:01:03]}  Kg7 {[%clk 0:01:37]} 34. hxg6 {[%clk 0:00:59]}  hxg6 {[%clk 0:01:38]} 35. f4 {[%clk 0:00:58]}  f5 {[%clk 0:01:38]} 36. Rg1 {[%clk 0:00:56]}  Kf6 {[%clk 0:01:37]} 37. Bg2 {[%clk 0:00:55]}  Bc5 {[%clk 0:01:36]} 0-1


[Site "https://www.chess.com"]

[Event "Titled Tuesday Blitz March 08 Late 2022"]
[White "Papasimakopoulos, Alexandros"]
[Black "Meduri, Aakaash"]
[WhiteFideId "4244125"]
[BlackFideId "2032252"]
[WhiteElo "2731"]
[BlackElo "2414"]
[Result "1-0"]
[Round "01"]
[TimeControl "180+1"]
[Date "2022.03.09"]
[WhiteClock "0:01:36"]
[BlackClock "0:00:02"]

1. d4 {[%clk 0:02:58]}  d5 {[%clk 0:02:59]} 2. c4 {[%clk 0:02:58]}  c6 {[%clk 0:03:00]} 3. cxd5 {[%clk 0:02:59]}  cxd5 {[%clk 0:03:00]} 4. Bf4 {[%clk 0:03:00]}  Nf6 {[%clk 0:03:00]} 5. Nc3 {[%clk 0:03:00]}  a6 {[%clk 0:03:01]} 6. e3 {[%clk 0:03:01]}  Nc6 {[%clk 0:03:01]} 7. Bd3 {[%clk 0:03:01]}  Bg4 {[%clk 0:02:59]} 8. f3 {[%clk 0:03:02]}  Bh5 {[%clk 0:03:00]} 9. h4 {[%clk 0:03:02]}  Bg6 {[%clk 0:03:00]} 10. g4 {[%clk 0:03:01]}  Bxd3 {[%clk 0:02:58]} 11. Qxd3 {[%clk 0:03:02]}  e6 {[%clk 0:02:55]} 12. h5 {[%clk 0:03:02]}  Bd6 {[%clk 0:02:53]} 13. Nge2 {[%clk 0:03:03]}  Bxf4 {[%clk 0:02:53]} 14. Nxf4 {[%clk 0:03:04]}  Qb6 {[%clk 0:02:41]} 15. O-O-O {[%clk 0:03:03]}  O-O-O {[%clk 0:02:34]} 16. g5 {[%clk 0:03:04]}  Nd7 {[%clk 0:02:34]} 17. g6 {[%clk 0:03:04]}  hxg6 {[%clk 0:02:03]} 18. hxg6 {[%clk 0:03:04]}  Nb4 {[%clk 0:01:11]} 19. Qb1 {[%clk 0:03:04]}  Rxh1 {[%clk 0:01:07]} 20. Rxh1 {[%clk 0:03:04]}  fxg6 {[%clk 0:00:58]} 21. a3 {[%clk 0:03:05]}  g5 {[%clk 0:00:57]} 22. Nh5 {[%clk 0:02:52]}  Nc6 {[%clk 0:00:50]} 23. Nxg7 {[%clk 0:02:44]}  Nxd4 {[%clk 0:00:34]} 24. exd4 {[%clk 0:02:41]}  Qxd4 {[%clk 0:00:35]} 25. Qg6 {[%clk 0:02:33]}  Nc5 {[%clk 0:00:33]} 26. Kb1 {[%clk 0:02:25]}  Qe5 {[%clk 0:00:21]} 27. Rg1 {[%clk 0:02:11]}  Rg8 {[%clk 0:00:16]} 28. Qxg5 {[%clk 0:02:05]}  Qd4 {[%clk 0:00:10]} 29. Qg6 {[%clk 0:02:01]}  Kb8 {[%clk 0:00:05]} 30. Rg4 {[%clk 0:01:53]}  Qd2 {[%clk 0:00:05]} 31. Qc2 {[%clk 0:01:51]}  Qe1+ {[%clk 0:00:05]} 32. Qc1 {[%clk 0:01:50]}  Qe5 {[%clk 0:00:05]} 33. Nh5 {[%clk 0:01:47]}  Rf8 {[%clk 0:00:03]} 34. Nf4 {[%clk 0:01:45]}  Qf5+ {[%clk 0:00:01]} 35. Qc2 {[%clk 0:01:45]}  d4 {[%clk 0:00:02]} 36. Ne4 {[%clk 0:01:36]} 1-0


[Site "https://www.chess.com"]

[Event "Titled Tuesday Blitz March 08 Late 2022"]
[White "Pinheiro, Iung Alicio de O."]
[Black "Arnold, Ken"]
[WhiteFideId "2104350"]
[BlackFideId "2056836"]
[WhiteElo "2610"]
[BlackElo "2295"]
[Result "1-0"]
[Round "01"]
[TimeControl "180+1"]
[Date "2022.03.09"]
[WhiteClock "0:00:12"]
[BlackClock "0:00:07"]

1. c4 {[%clk 0:03:00]}  Nf6 {[%clk 0:02:57]} 2. g3 {[%clk 0:03:00]}  c6 {[%clk 0:02:54]} 3. Nf3 {[%clk 0:02:59]}  d5 {[%clk 0:02:54]} 4. Bg2 {[%clk 0:02:58]}  e6 {[%clk 0:02:47]} 5. Qc2 {[%clk 0:02:45]}  Be7 {[%clk 0:02:42]} 6. O-O {[%clk 0:02:45]}  O-O {[%clk 0:02:40]} 7. d4 {[%clk 0:02:45]}  Ne4 {[%clk 0:02:38]} 8. Nc3 {[%clk 0:02:42]}  Nxc3 {[%clk 0:02:37]} 9. Qxc3 {[%clk 0:02:36]}  dxc4 {[%clk 0:02:33]} 10. Qxc4 {[%clk 0:02:35]}  Nd7 {[%clk 0:02:33]} 11. b3 {[%clk 0:02:25]}  Nb6 {[%clk 0:02:31]} 12. Qc2 {[%clk 0:02:25]}  Bf6 {[%clk 0:02:28]} 13. Rd1 {[%clk 0:02:24]}  Qe7 {[%clk 0:02:20]} 14. a4 {[%clk 0:02:20]}  Rd8 {[%clk 0:02:17]} 15. Ba3 {[%clk 0:02:13]}  Qe8 {[%clk 0:02:16]} 16. e4 {[%clk 0:02:12]}  Be7 {[%clk 0:02:08]} 17. Bb2 {[%clk 0:02:08]}  Bb4 {[%clk 0:02:04]} 18. h4 {[%clk 0:01:50]}  Nd7 {[%clk 0:02:01]} 19. e5 {[%clk 0:01:46]}  a6 {[%clk 0:01:50]} 20. Ng5 {[%clk 0:01:45]}  Nf8 {[%clk 0:01:48]} 21. Ba3 {[%clk 0:01:44]}  Bxa3 {[%clk 0:01:47]} 22. Rxa3 {[%clk 0:01:45]}  Qe7 {[%clk 0:01:41]} 23. Raa1 {[%clk 0:01:43]}  Qb4 {[%clk 0:01:22]} 24. Qc4 {[%clk 0:01:13]}  Qe7 {[%clk 0:00:44]} 25. Ne4 {[%clk 0:00:56]}  Bd7 {[%clk 0:00:38]} 26. a5 {[%clk 0:00:53]}  Be8 {[%clk 0:00:33]} 27. Qc5 {[%clk 0:00:34]}  Qxc5 {[%clk 0:00:26]} 28. Nxc5 {[%clk 0:00:33]}  Rab8 {[%clk 0:00:21]} 29. Ra4 {[%clk 0:00:32]}  Nd7 {[%clk 0:00:21]} 30. b4 {[%clk 0:00:22]}  Nxc5 {[%clk 0:00:21]} 31. bxc5 {[%clk 0:00:23]}  Rd7 {[%clk 0:00:17]} 32. Rb1 {[%clk 0:00:22]}  Rbd8 {[%clk 0:00:15]} 33. Rbb4 {[%clk 0:00:23]}  Kf8 {[%clk 0:00:15]} 34. Bf1 {[%clk 0:00:23]}  Rc7 {[%clk 0:00:14]} 35. f4 {[%clk 0:00:23]}  Bd7 {[%clk 0:00:15]} 36. Kf2 {[%clk 0:00:23]}  Bc8 {[%clk 0:00:15]} 37. Ke3 {[%clk 0:00:23]}  h6 {[%clk 0:00:15]} 38. g4 {[%clk 0:00:23]}  f6 {[%clk 0:00:15]} 39. Bd3 {[%clk 0:00:21]}  fxe5 {[%clk 0:00:13]} 40. fxe5 {[%clk 0:00:22]}  Rf7 {[%clk 0:00:13]} 41. Ra2 {[%clk 0:00:21]}  Ke7 {[%clk 0:00:13]} 42. Rab2 {[%clk 0:00:19]}  Kf8 {[%clk 0:00:10]} 43. Bg6 {[%clk 0:00:17]}  Rf1 {[%clk 0:00:08]} 44. Rf2+ {[%clk 0:00:13]}  Rxf2 {[%clk 0:00:08]} 45. Kxf2 {[%clk 0:00:14]}  Ke7 {[%clk 0:00:08]} 46. Ke2 {[%clk 0:00:14]}  Rf8 {[%clk 0:00:08]} 47. Ke3 {[%clk 0:00:13]}  Rf1 {[%clk 0:00:08]} 48. Bd3 {[%clk 0:00:13]}  Rg1 {[%clk 0:00:07]} 49. Be2 {[%clk 0:00:12]}  Rxg4 {[%clk 0:00:07]} 50. Bxg4 {[%clk 0:00:12]}  g5 {[%clk 0:00:07]} 51. h5 {[%clk 0:00:12]} 1-0


[Site "https://www.chess.com"]

[Event "Titled Tuesday Blitz March 08 Late 2022"]
[White "Qashashvili, Alexandre"]
[Black "Rosen, Eric"]
[WhiteFideId "13600842"]
[BlackFideId "2032562"]
[WhiteElo "2316"]
[BlackElo "2362"]
[Result "1/2-1/2"]
[Round "01"]
[TimeControl "180+1"]
[Date "2022.03.09"]
[WhiteClock "0:00:34"]
[BlackClock "0:00:07"]

1. e4 {[%clk 0:03:00]}  e5 {[%clk 0:02:55]} 2. Nf3 {[%clk 0:02:59]}  Nf6 {[%clk 0:02:55]} 3. Nc3 {[%clk 0:02:59]}  Bc5 {[%clk 0:02:55]} 4. Bc4 {[%clk 0:02:58]}  d6 {[%clk 0:02:55]} 5. d3 {[%clk 0:02:58]}  Nc6 {[%clk 0:02:54]} 6. h3 {[%clk 0:02:58]}  a6 {[%clk 0:02:52]} 7. a3 {[%clk 0:02:58]}  h6 {[%clk 0:02:51]} 8. Be3 {[%clk 0:02:58]}  Bxe3 {[%clk 0:02:42]} 9. fxe3 {[%clk 0:02:58]}  Be6 {[%clk 0:02:43]} 10. Bxe6 {[%clk 0:02:57]}  fxe6 {[%clk 0:02:44]} 11. d4 {[%clk 0:02:54]}  exd4 {[%clk 0:02:12]} 12. exd4 {[%clk 0:02:44]}  e5 {[%clk 0:02:09]} 13. dxe5 {[%clk 0:02:43]}  Nxe5 {[%clk 0:02:06]} 14. Nxe5 {[%clk 0:02:41]}  dxe5 {[%clk 0:02:07]} 15. Qxd8+ {[%clk 0:02:40]}  Rxd8 {[%clk 0:02:05]} 16. O-O {[%clk 0:02:40]}  Ke7 {[%clk 0:01:56]} 17. Rad1 {[%clk 0:02:23]}  Ke6 {[%clk 0:01:53]} 18. Kf2 {[%clk 0:02:20]}  Rd4 {[%clk 0:01:45]} 19. Ke3 {[%clk 0:02:01]}  Rhd8 {[%clk 0:01:44]} 20. g4 {[%clk 0:02:00]}  Nxe4 {[%clk 0:01:12]} 21. Rxd4 {[%clk 0:01:51]}  exd4+ {[%clk 0:01:12]} 22. Kxe4 {[%clk 0:01:48]}  dxc3 {[%clk 0:01:13]} 23. bxc3 {[%clk 0:01:49]}  Rd2 {[%clk 0:01:13]} 24. Rf8 {[%clk 0:01:18]}  Rxc2 {[%clk 0:01:11]} 25. Kd3 {[%clk 0:01:18]}  Rh2 {[%clk 0:01:09]} 26. Re8+ {[%clk 0:01:16]}  Kd7 {[%clk 0:01:05]} 27. Re3 {[%clk 0:01:11]}  Ra2 {[%clk 0:01:03]} 28. Rf3 {[%clk 0:01:11]}  Ke6 {[%clk 0:00:58]} 29. Re3+ {[%clk 0:01:10]}  Kd6 {[%clk 0:00:56]} 30. Rf3 {[%clk 0:01:10]}  Rxa3 {[%clk 0:00:47]} 31. Rf7 {[%clk 0:01:09]}  b5 {[%clk 0:00:48]} 32. Kc2 {[%clk 0:01:07]}  Ra2+ {[%clk 0:00:47]} 33. Kb3 {[%clk 0:01:07]}  Rh2 {[%clk 0:00:41]} 34. Rxg7 {[%clk 0:01:07]}  Rxh3 {[%clk 0:00:39]} 35. Rg6+ {[%clk 0:01:08]}  Kc5 {[%clk 0:00:39]} 36. Rxa6 {[%clk 0:01:06]}  c6 {[%clk 0:00:20]} 37. Ra8 {[%clk 0:01:03]}  Kb6 {[%clk 0:00:12]} 38. Rh8 {[%clk 0:00:59]}  Ka5 {[%clk 0:00:11]} 39. g5 {[%clk 0:00:51]}  b4 {[%clk 0:00:07]} 40. Ra8+ {[%clk 0:00:49]}  Kb6 {[%clk 0:00:04]} 41. gxh6 {[%clk 0:00:40]}  bxc3 {[%clk 0:00:03]} 42. Rh8 {[%clk 0:00:37]}  Kc5 {[%clk 0:00:03]} 43. h7 {[%clk 0:00:36]}  c2+ {[%clk 0:00:02]} 44. Kxc2 {[%clk 0:00:36]}  Kc4 {[%clk 0:00:02]} 45. Rc8 {[%clk 0:00:34]}  Rh2+ {[%clk 0:00:03]} 46. Kd1 {[%clk 0:00:34]}  Rxh7 {[%clk 0:00:04]} 47. Rxc6+ {[%clk 0:00:34]}  Kd3 {[%clk 0:00:04]} 48. Rd6+ {[%clk 0:00:34]}  Kc3 {[%clk 0:00:05]} 49. Rc6+ {[%clk 0:00:34]}  Kd3 {[%clk 0:00:06]} 50. Rd6+ {[%clk 0:00:34]}  Ke3 {[%clk 0:00:06]} 51. Re6+ {[%clk 0:00:34]}  Kd3 {[%clk 0:00:07]} 52. Rd6+ {[%clk 0:00:34]} 1/2-1/2


[Site "https://www.chess.com"]

[Event "Titled Tuesday Blitz March 08 Late 2022"]
[White "Salinas Herrera, Pablo"]
[Black "Hryshchenko, Kamila"]
[WhiteFideId "3407128"]
[BlackFideId "14147491"]
[WhiteElo "2541"]
[BlackElo "1929"]
[Result "0-1"]
[Round "01"]
[TimeControl "180+1"]
[Date "2022.03.08"]
[WhiteClock "0:00:05"]
[BlackClock "0:00:58"]

1. d4 {[%clk 0:03:00]}  d5 {[%clk 0:03:00]} 2. Nf3 {[%clk 0:03:01]}  e6 {[%clk 0:03:00]} 3. Bf4 {[%clk 0:03:01]}  Nf6 {[%clk 0:03:01]} 4. e3 {[%clk 0:03:02]}  Bd6 {[%clk 0:03:02]} 5. Nbd2 {[%clk 0:03:02]}  O-O {[%clk 0:03:02]} 6. Bd3 {[%clk 0:03:02]}  Bxf4 {[%clk 0:03:02]} 7. exf4 {[%clk 0:03:02]}  Qd6 {[%clk 0:03:03]} 8. g3 {[%clk 0:03:00]}  b6 {[%clk 0:03:04]} 9. Qe2 {[%clk 0:03:00]}  a5 {[%clk 0:03:04]} 10. O-O {[%clk 0:02:59]}  Ba6 {[%clk 0:03:04]} 11. Bxa6 {[%clk 0:03:00]}  Nxa6 {[%clk 0:03:05]} 12. c3 {[%clk 0:03:00]}  c5 {[%clk 0:03:05]} 13. Rfe1 {[%clk 0:03:00]}  a4 {[%clk 0:03:03]} 14. a3 {[%clk 0:03:00]}  Nb8 {[%clk 0:02:49]} 15. Rad1 {[%clk 0:02:58]}  Nc6 {[%clk 0:02:46]} 16. Nf1 {[%clk 0:02:55]}  Ne4 {[%clk 0:02:40]} 17. dxc5 {[%clk 0:02:50]}  Qxc5 {[%clk 0:02:41]} 18. Ne3 {[%clk 0:02:46]}  b5 {[%clk 0:02:38]} 19. Nd4 {[%clk 0:02:42]}  Nxd4 {[%clk 0:02:36]} 20. Rxd4 {[%clk 0:02:43]}  Rab8 {[%clk 0:02:35]} 21. Red1 {[%clk 0:02:41]}  Rfe8 {[%clk 0:02:34]} 22. Kg2 {[%clk 0:02:41]}  h6 {[%clk 0:02:34]} 23. Qf3 {[%clk 0:02:41]}  Qc6 {[%clk 0:02:31]} 24. h4 {[%clk 0:02:40]}  Nd6 {[%clk 0:02:31]} 25. f5 {[%clk 0:02:33]}  Nc4 {[%clk 0:02:29]} 26. fxe6 {[%clk 0:02:33]}  fxe6 {[%clk 0:02:29]} 27. Qe2 {[%clk 0:02:22]}  Rbd8 {[%clk 0:02:24]} 28. Nxc4 {[%clk 0:02:08]}  bxc4 {[%clk 0:02:25]} 29. f4 {[%clk 0:02:08]}  Rb8 {[%clk 0:02:11]} 30. R1d2 {[%clk 0:02:08]}  Rb6 {[%clk 0:02:10]} 31. Qf2 {[%clk 0:02:00]}  Reb8 {[%clk 0:02:08]} 32. Kh2 {[%clk 0:01:22]}  Qb7 {[%clk 0:02:08]} 33. Qe3 {[%clk 0:01:19]}  Kh8 {[%clk 0:01:58]} 34. f5 {[%clk 0:01:13]}  exf5 {[%clk 0:01:52]} 35. Rxd5 {[%clk 0:01:14]}  Rxb2 {[%clk 0:01:50]} 36. Qe5 {[%clk 0:00:42]}  Rf8 {[%clk 0:01:41]} 37. Rd6 {[%clk 0:00:35]}  Rf6 {[%clk 0:01:24]} 38. Rd8+ {[%clk 0:00:31]}  Kh7 {[%clk 0:01:24]} 39. Qf4 {[%clk 0:00:11]}  Rb1 {[%clk 0:01:20]} 40. R8d5 {[%clk 0:00:09]}  Re1 {[%clk 0:01:11]} 41. Qf2 {[%clk 0:00:07]}  Rc1 {[%clk 0:01:07]} 42. Qf3 {[%clk 0:00:04]}  Qb1 {[%clk 0:01:05]} 43. Rd8 {[%clk 0:00:01]}  Rf1 {[%clk 0:01:03]} 44. Qg2 {[%clk 0:00:01]}  f4 {[%clk 0:01:02]} 45. gxf4 {[%clk 0:00:02]}  Rg6 {[%clk 0:01:00]} 46. R8d4 {[%clk 0:00:03]}  Rxg2+ {[%clk 0:00:59]} 47. Kxg2 {[%clk 0:00:04]}  Rg1+ {[%clk 0:01:00]} 48. Kh2 {[%clk 0:00:05]}  Rh1+ {[%clk 0:00:59]} 49. Kg2 {[%clk 0:00:05]}  Qf1+ {[%clk 0:01:00]} 50. Kg3 {[%clk 0:00:06]}  Rh3+ {[%clk 0:01:01]} 51. Kg4 {[%clk 0:00:06]}  Qf3+ {[%clk 0:01:01]} 52. Kf5 {[%clk 0:00:07]}  Rxh4 {[%clk 0:01:00]} 53. Ke5 {[%clk 0:00:07]}  Rh5+ {[%clk 0:01:00]} 54. Kd6 {[%clk 0:00:07]}  Rf5 {[%clk 0:00:59]} 55. Rxc4 {[%clk 0:00:02]}  Rxf4 {[%clk 0:01:00]} 56. Rc5 {[%clk 0:00:03]}  Rf6+ {[%clk 0:00:58]} 57. Kd7 {[%clk 0:00:03]}  Qb7+ {[%clk 0:00:57]} 58. Rc7 {[%clk 0:00:03]}  Rf7+ {[%clk 0:00:57]} 59. Ke6 {[%clk 0:00:03]}  Qxc7 {[%clk 0:00:57]} 60. c4 {[%clk 0:00:04]}  Re7+ {[%clk 0:00:56]} 61. Kf5 {[%clk 0:00:04]}  Qe5+ {[%clk 0:00:57]} 62. Kg4 {[%clk 0:00:04]}  h5+ {[%clk 0:00:57]} 63. Kh4 {[%clk 0:00:04]}  Qf4+ {[%clk 0:00:58]} 64. Kxh5 {[%clk 0:00:05]}  Re5# {[%clk 0:00:58]} 0-1


[Site "https://www.chess.com"]